Cogmind - Beta 16.1 @@@ ROGUE MODE // 2026.02.19 @ 21:58:21 Player: f3-rnm Result: Self-destructed Performance ------------- Evolutions (2) 1000 Regions Visited (3) 600 Robots Destroyed (4) 20 Value Destroyed (161) 161 Prototype IDs (14) 280 Alien Tech Used (0) 0 Bonus (94) 94 TOTAL SCORE: 2155 Bonus ------- Follower Combat Kills 183 Friendly Fire -89 Cogmind --------- Core Integrity 331/550 Matter 146/300 Energy 100/100 System Corruption 0% Temperature Cool (0) Movement Core (1350) Ox26 Location -8/Materials Parts ------- > --- POWER (1) -------- (None) > --- PROPULSION (2) --- (None) > --- UTILITY (3) ------ Huge Storage Unit Machine Analyzer > --- WEAPON (5) ------- (None) > --- INVENTORY (25) --- Ion Engine Improved Heat Sink Small Storage Unit Rainbow Chip Assault Rifle Assault Rifle Subdweller Machine Gun High-powered Shotgun Barrage Gun Battle Cannon Battle Cannon Makeshift Axe Peak State ------------ > --- POWER ------------ Light Ion Engine > --- PROPULSION ------- Wheel Wheel > --- UTILITY ---------- Huge Storage Unit Scrap Shield > --- WEAPON ----------- 1B-0RG's Assimilator > --- INVENTORY -------- Ion Engine Light Treads Light Treads Small Storage Unit Machine Analyzer Rainbow Chip Assault Rifle Assault Rifle Battle Cannon Battle Cannon Makeshift Axe [Rating: 76] Favorites ----------- Power Light Ion Engine Engine Light Ion Engine Propulsion Light Treads Treads Light Treads Wheel Wheel Utility Huge Storage Unit Storage Huge Storage Unit Processor Machine Analyzer Protection Scrap Shield Weapon Barrage Gun Ballistic Gun Barrage Gun Slashing Weapon Makeshift Axe Special Melee Weapon 1B-0RG's Assimilator Build | -11 -10 -10 -8 ------- Run | Yrd Mat Sub Mat Slots Evolved 4 | . . . 4 Power . | . . . . Propulsion . | . . . . Utility 1 | . . . 1 Weapon 3 | . . . 3 Parts Attached 15 | 6 . 4 5 Power 1 | 1 . . . Engine 1 | 1 . . . Core . | . . . . Reactor . | . . . . Propulsion 4 | 2 . . 2 Treads 2 | 2 . . . Leg . | . . . . Wheel 2 | . . . 2 Hover . | . . . . Flight . | . . . . Utility 4 | 1 . 1 2 Device . | . . . . Storage 2 | 1 . 1 . Processor 1 | . . . 1 Hackware . | . . . . Protection 1 | . . . 1 Artifact . | . . . . Weapon 6 | 2 . 3 1 Energy Gun . | . . . . Energy Cannon . | . . . . Ballistic Gun 4 | 2 . 2 . Ballistic Cannon . | . . . . Launcher . | . . . . Special Weapon . | . . . . Impact Weapon . | . . . . Slashing Weapon 1 | . . 1 . Piercing Weapon . | . . . . Special Melee Weapon 1 | . . . 1 Unidentified Prototypes 1 | . . . 1 Parts Lost 7 | . . . 7 Power 1 | . . . 1 Propulsion 4 | . . . 4 Utility 1 | . . . 1 Weapon 1 | . . . 1 Highest Loss Streak 4 | . . . 4 To Critical Strikes . | . . . . Average Backups 9 | 1 3 9 12 Power . | . 1 1 1 Propulsion 1 | . 2 2 . Utility 2 | . . 3 3 Weapon 3 | . . 2 7 Tool/Special . | . . . . Unused Backups 4 | . . . 4 Power 1 | . . . 1 Propulsion . | . . . . Utility 2 | . . . 2 Weapon 1 | . . . 1 Tool/Special . | . . . . Average Slot Usage (%) 76 | . 85 89 45 Engine 11 | . 14 14 3 Treads 22 | . 28 28 9 Wheel 2 | . . . 7 Storage 14 | . 14 17 9 Ballistic Gun 19 | . 28 26 . Slashing Weapon 1 | . . 1 . Special Melee Weapon 2 | . . . 8 Peak Build Rating 76 | 6 6 21 76 Average Rating 30 | 4 6 16 71 On Entrance 7 | . 6 6 18 Avg Prop Armor Cover (%) . | . . . . Naked Turns . | . . . . Heaviest Build 156 | 12 12 95 156 Greatest Support 40 | 40 40 40 40 Greatest Overweight (x) 44 | . . 2 44 Average Overweight (x) 2 | . . 1 5 Largest Inventory Capacity 25 | 8 8 25 25 Average Capacity 20 | 7 8 21 25 Most Carried 18 | 3 4 18 18 Average Carried 11 | 1 3 13 12 Final Capacity 25 | 8 8 25 25 Final Carried 18 | 3 4 18 12 Class Distribution -------------------- 100% | Mutant Dominant Class ---------------- Mutant | -10/Materials Mutant | -10/Subcaves Mutant | -8/Materials Resources | -11 -10 -10 -8 ----------- Run | Yrd Mat Sub Mat Matter Collected 447 | 216 . 126 105 Remotely . | . . . . Salvage Created 188 | . . 188 . Parts 8 | . . 8 . Haulers Intercepted . | . . . . Recyclers Shooed . | . . . . Parts Field Recycled . | . . . . Retrieved Matter . | . . . . Parts Self-Destructed 3 | . . 3 . Prevented . | . . . . Parts Restored . | . . . . Kills | -11 -10 -10 -8 ------- Run | Yrd Mat Sub Mat Combat Hostiles Destroyed 4 | . . 4 . Guns 4 | . . 4 . Classes Destroyed 3 | . . 3 . Grunt 2 | . . 2 . Artisan 1 | . . 1 . Subdweller 2 | . . 2 . Best Kill Streak 2 | . . 2 . Combat Bots Only 2 | . . 2 . Max Kills in Single Turn 1 | . . 1 . Gunslinging . | . . . . Exploded . | . . . . Melee . | . . . . Uniques/NPCs Destroyed . | . . . . Combat | -11 -10 -10 -8 -------- Run | Yrd Mat Sub Mat Hostile Shots Fired 85 | . . 15 70 Missed 23 | . . 2 21 Hits 62 | . . 13 49 Projectile 62 | . . 13 49 AOE 1 | . . 1 . Critical Strikes 6 | . . 1 5 Damage Taken 1248 | . . 261 987 Core 258 | . . 39 219 Absorbed by Shields . | . . . . Regen/Repaired (Parts) 158 | . . . 158 Core Remaining (%) 92 | 100 . 84 . Volleys Fired 11 | . . 11 . Largest 2 | . . 2 . Hottest 58 | . . 58 . Shots Fired 22 | . . 22 . Gun 22 | . . 22 . Cannon . | . . . . Launcher . | . . . . Special . | . . . . Kinetic 22 | . . 22 . Thermal . | . . . . Explosive . | . . . . Electromagnetic . | . . . . Robot Hit Streak 19 | . . 19 . Robot Miss Streak 1 | . . 1 . Penetration Max . | . . . . Secondary Targets 1 | . . 1 . Max Gunslinging Chain 1 | . . 1 . Shots Hit Robots 21 | . . 21 . Core Hits 9 | . . 9 . Critical Kills . | . . . . Critical Parts Destroyed . | . . . . Critical Strikes . | . . . . Melee Attacks 2 | . . 2 . Impact . | . . . . Slashing 2 | . . 2 . Piercing . | . . . . Sneak Attacks 1 | . . 1 . Combat Hostiles . | . . . . Follow-up Attacks . | . . . . Damage Inflicted 370 | . . 370 . Guns 301 | . . 301 . Cannons . | . . . . Explosions . | . . . . Melee 69 | . . 69 . Ramming . | . . . . Kinetic 301 | . . 301 . Thermal . | . . . . Explosive . | . . . . Electromagnetic . | . . . . Impact . | . . . . Slashing 69 | . . 69 . Piercing . | . . . . Highest Corruption . | . . . . Average Corruption . | . . . . Corruption Purged . | . . . . Corruption Blocked . | . . . . Overload Shots . | . . . . Overflow Damage . | . . . . Projectiles . | . . . . Explosions . | . . . . Melee . | . . . . Knockbacks . | . . . . Impact . | . . . . Kinetic . | . . . . Secondary . | . . . . Self-Inflicted Damage . | . . . . Shots . | . . . . Rammed . | . . . . Targets Rammed . | . . . . Kicked . | . . . . Crushed . | . . . . Highest Temperature . | . . . . Average Temperature . | . . . . Received Heat Transfer 567 | . . 117 450 Siege Activations . | . . . . Martial Activations . | . . . . Shielding Activations . | . . . . Robots Disrupted . | . . . . Combat Hostiles . | . . . . Robots Corrupted . | . . . . Combat Hostiles . | . . . . Parts Fried . | . . . . Impact Corruptions . | . . . . Robots Melted . | . . . . Combat Hostiles . | . . . . Parts Melted . | . . . . Heat Transferred . | . . . . Parts Sabotaged . | . . . . Parts Stolen . | . . . . Parts Stripped . | . . . . Power Chain Reactions . | . . . . Alert | -11 -10 -10 -8 ------- Run | Yrd Mat Sub Mat Maximum Alert Level . | . . . . Low Security (%) 100 | 100 100 . 100 Level 1 . | . . . . Level 2 . | . . . . Level 3 . | . . . . Level 4 . | . . . . Level 5 . | . . . . High Security . | . . . . Max Security . | . . . . Peak Influence 85 | . . . 85 Initial . | . . . . Average 12 | . . . 17 Influence Increases 237 | . . 50 187 Destroy 0b10 Robot/C 140 | . . 40 100 Destroy Leader 40 | . . 10 30 Allied During Kill 12 | . . . 12 Lose Combat Pursuer 45 | . . . 45 Influence Decreases 225 | . . 50 175 Time Decay 175 | . . 50 125 Lost Part 10 | . . . 10 Lost Ally 40 | . . . 40 Squads Dispatched 5 | . . . 5 Investigation . | . . . . Extermination . | . . . . Reinforcement 2 | . . . 2 Assault . | . . . . Garrison 3 | . . . 3 Intercept . | . . . . Searches Triggered . | . . . . Construction Impeded . | . . . . Haulers Reinforced . | . . . . Active Scanning Responses . | . . . . Cargo Convoy Interrupts . | . . . . Stealth | -11 -10 -10 -8 --------- Run | Yrd Mat Sub Mat Distress Signals 1 | . . . 1 Communications Jammed . | . . . . Distress Signals . | . . . . Times Spotted 21 | . . 4 17 Peak Tracking Total 7 | . . 2 7 Tactical Retreats 2 | . . . 2 Traps | -11 -10 -10 -8 ------- Run | Yrd Mat Sub Mat Traps Triggered . | . . . . Indirectly . | . . . . Trap Hack Attempts . | . . . . Triggered . | . . . . Disarmed . | . . . . Reprogrammed . | . . . . Reused . | . . . . Traps Extracted . | . . . . Installed . | . . . . Triggered . | . . . . Machines | -11 -10 -10 -8 ---------- Run | Yrd Mat Sub Mat Machines Disabled 1 | . . 1 . Max in Single Turn 1 | . . 1 . Machines Repaired . | . . . . Machines Dismantled . | . . . . Machines Sabotaged . | . . . . Overloaded Fab Kills . | . . . . Hacking | -11 -10 -10 -8 --------- Run | Yrd Mat Sub Mat Machines Accessed 1 | . . 1 . Terminals . | . . . . Fabricators . | . . . . Repair Stations . | . . . . Recycling Units . | . . . . Scanalyzers . | . . . . Garrison Access . | . . . . Total Hacks 1 | . . 1 . Successful 1 | . . 1 . Failed . | . . . . Catastrophic . | . . . . Database Lockouts . | . . . . Manual . | . . . . Terminals . | . . . . Fabricators . | . . . . Repair Stations . | . . . . Recycling Units . | . . . . Scanalyzers . | . . . . Garrison Access . | . . . . Terminal Hacks 1 | . . 1 . Proto ID Catalog 1 | . . 1 . Fabricator Hacks . | . . . . Repair Station Hacks . | . . . . Recycling Unit Hacks . | . . . . Scanalyzer . | . . . . Garrison Access Hacks . | . . . . Unauthorized Hacks . | . . . . Terminals . | . . . . Fabricators . | . . . . Repair Stations . | . . . . Recycling Units . | . . . . Scanalyzers . | . . . . Garrison Access . | . . . . Data Cores Recovered . | . . . . Used . | . . . . Hacking Detections . | . . . . Full Trace Events . | . . . . Feedback Events . | . . . . Feedback Blocked . | . . . . Robot Schematics Acquired . | . . . . Robots Built . | . . . . Authchips . | . . . . Time . | . . . . Total Robot Build Rating . | . . . . Part Schematics Acquired . | . . . . Parts Built . | . . . . Authchips . | . . . . Time . | . . . . Total Part Build Rating . | . . . . Part Studies Acquired . | . . . . Parts Repaired . | . . . . Time . | . . . . Parts Recycled . | . . . . Recycled Matter . | . . . . Retrieved Matter . | . . . . Retrieved Components . | . . . . Parts Scanalyzed . | . . . . Part Schematics Acquired . | . . . . Parts Damaged . | . . . . Bothacking | -11 -10 -10 -8 ------------ Run | Yrd Mat Sub Mat Used RIF Installer . | . . . . Robots Hacked . | . . . . Non-combat . | . . . . Combat . | . . . . Robot Hacks Applied . | . . . . Relay Couplers Released . | . . . . Fabnet Peak Effective % . | . . . . Robots Rewired . | . . . . Allies Hacked . | . . . . Hacks Repelled . | . . . . Allies | -11 -10 -10 -8 -------- Run | Yrd Mat Sub Mat Total Allies . | . . . . Largest Group . | . . . . Highest-Rated Group . | . . . . Highest-Rated Ally . | . . . . Total Orders . | . . . . Ally Attacks 36 | . . . 36 Total Damage 987 | . . . 987 Kills 5 | . . . 5 Allies Corrupted . | . . . . Allies Melted . | . . . . Borg Created 3 | . . . 3 Largest Collective 2 | . . . 2 Intel | -11 -10 -10 -8 ------- Run | Yrd Mat Sub Mat Active Infowar (turns) 170 | . . . 170 Machine Analysis 170 | . . . 170 Robot Analysis Total . | . . . . Derelict Logs Recovered . | . . . . Drone Launches . | . . . . Drone Recoveries . | . . . . Exploration | -11 -10 -10 -8 ------------- Run | Yrd Mat Sub Mat Turns Passed 1708 | 87 140 1016 465 Spaces Moved 586 | 49 44 350 143 Core 3 | 2 . . 1 Treads 501 | 47 44 350 60 Legs . | . . . . Wheels 82 | . . . 82 Hover . | . . . . Flight . | . . . . Fastest Speed 50 | 50 160 160 170 Average Speed 262 | 155 160 276 294 Slowest Speed 2250 | 160 160 320 2250 Overloaded Moves . | . . . . Propulsion Burnouts . | . . . . Robots Hopped . | . . . . Potential Cave-ins . | . . . . Cave-ins Triggered . | . . . . Exploration Rate (%) 10 | 3 8 19 13 Regions Visited 3 Branch Regions 1 Pre-discovered Areas 1 | . . 1 . Known Exits Taken . | . . . . Unknown Exits Taken 3 | 1 1 1 . Scrap Searched 2 | . . 2 . Spaces Dug . | . . . . Terrain Destroyed . | . . . . Melee . | . . . . Projectile . | . . . . AOE . | . . . . Terrain Rammed . | . . . . Walls Destroyed . | . . . . Machines Disabled . | . . . . Actions | -11 -10 -10 -8 --------- Run | Yrd Mat Sub Mat Total 726 | 57 114 375 180 Wait 91 | . 70 . 21 Move 583 | 48 43 349 143 Hop . | . . . . Pick Up 16 | 3 1 8 4 Fast Attach 6 | 6 . . . Attach 6 | . . 1 5 Detach 1 | . . 1 . Swap 5 | . . 3 2 Drop 2 | . . . 2 Fire 11 | . . 11 . Melee 2 | . . 2 . Ram . | . . . . Kick . | . . . . Crush . | . . . . Escape Stasis . | . . . . Rewire . | . . . . Trap . | . . . . Miscellaneous 3 | . . . 3 Route ------- -11/Scrapyard -10/Materials -10/Subcaves -8/Materials History --------- Turn | Location | Event 28 | -11/Scrapyard | Discovered new exit (range 16) 88 | -11/Scrapyard | Entered Materials 207 | -10/Materials | Discovered new exit (range 7) 228 | -10/Materials | Entered Subcaves 229 | -10/Subcaves | Approached by a straggling Scientist 317 | -10/Subcaves | Build established: Mutant 385 | -10/Subcaves | Visited 4L-MR0's lab 405 | -10/Subcaves | Found Rainbow Chip 410 | -10/Subcaves | Found Prototype Special Melee Weapon 802 | -10/Subcaves | Learned location of Zion (-7) 802 | -10/Subcaves | Met a Zionite searching for "candidates" 1096 | -10/Subcaves | Discovered new exit (range 6) 1162 | -10/Subcaves | Ambushed by Subdweller buried in earth 1244 | -10/Subcaves | Entered Materials 1244 | -8/Materials | Evolved 4 slots: Utility x1, Weapon x3 1250 | -8/Materials | Identified 1B-0RG's Assimilator 1320 | -8/Materials | Assimilating Trooper 3a into Collective. 1350 | -8/Materials | Assimilating Trooper 3b into Collective. 1439 | -8/Materials | Garrison activated, responded to threat 1463 | -8/Materials | Lost 4 parts (1p2n1u) 1652 | -8/Materials | Assimilating Trooper 3c into Collective. 1709 | -8/Materials | Self-destructed Last Messages --------------- 01656_ Borg Trooper 3a overheating. 01657_ Borg Trooper 3a heat damages core (-8). 01657_ Borg Trooper 3a overheating. 01658_ W-25 Informer sends out distress signal. 01658_ Borg Trooper 3a suffers critical hit (Burn). 01658_ Borg Trooper 3a destroyed. 01658_ Core damaged by loss of Borg Trooper 3a (-6). 01663_ Critical hit (Burn: +37). 01664_ R-06 Scavenger collects Transport Network Coupler. 01665_ Lgt. Treads destroyed. 01668_ Borg Trooper 3c assimilation complete, grew Sfc. Borg Chaingun, Sfc. Borg Regenerator. 01673_ Critical hit (Burn: +37). 01677_ Borg Trooper 3c suffers critical hit (Burn). 01679_ G-47 Trooper destroyed. 01679_ Borg Trooper 3c destroyed. 01679_ Core damaged by loss of Borg Trooper 3c (-6). 01685_ Lgt. Treads destroyed. 01699_ 1B-0RG's Assimilator destroyed. 01701_ Critical hit (Burn: +37). Map ----- +----------------------------------------------------+ | ??????????????????????????????????????# # # | | ?????????????????????????????????????######### # | | ?????????????????????????????????????# # # | | ?????????????????????????????????????# """"" # # | | ?????????????????????????????????????# """"" += # | | ?????????????????????????????????????# """"" # # | | ?????????????????????????????????????# # # | | ?????????????????????????????????????######### # | | ??????????????????????????????????????###????# # | | ??????????????????????????????????????# ??# # | | ??????????????????????????????????????# """ # # | | ??????????????????????????????????????# """ + # | | ??????????????????????????????????????#! """ # # | | ??????????????????????????????????????# #% # | | ??????????????????????????????????????# ?# # | | ????????????????##?????????????????###########% # | | ????????????????? ?????????????????? #% # | | ?????????????????? ????????????????? """"" # # | | ??????????????????? ???????????????"""""""" + / | | ???????????????????# ???????????# """ """ # # | | ???????????????????# ??????????# # # | | ???????????????????# ?????????############## # | | ????????????######## ########??????????????# # | | ????????????# g #??????????????# # | | ????????????# gg #?????????????## # | | ????????????# @g #?????????????## # | | ?????????????????####+##### #?????????????## # | | ??????????????????????????# #?????????????## # | | ??????????????????????????# #?????????????## # | | ??????????????????????????# %############### % | | ??????????????????????????#% | | ??????????????????????????# % | | ??????????????????????????# =* ] | | ??????????????????????????# =%############### | | ??????????????????????????# [#?"""?????????###### | | ??????????????????????????# #?"G"??????????????? | | ??????????????????????????# #?"?"??????????????? | | ?????????????????????????? ??????????????????? | | ????????????????????????? ??????????????????? | | ???????????????????????? """?????????????????? | | ???????????????????????#### """?????????????????? | | ??????????????????????????# """?????????????????? | | ??????????????????????????# ???????????????????? | | ??????????????????????????# ???????????????????? | | ??????????????????????????# ???????????????????? | | ?????????????????????????? ???????????????????? | | ?????????????????????????????????????????????????? | | ?????????????????????????????????????????????????? | | ?????????????????????????????????????????????????? | | ?????????????????????????????????????????????????? | +----------------------------------------------------+ Best States ------------- Heat Dissipation 31 Energy Generation 10 Energy Capacity 125 Matter Stores 300 Matter Capacity 300 Sight Range 16 Terrain Scan Density 10 Armor Coverage 800 Evasion (%) 40 Recoil Reduction 2 Item Schematics ----------------- None Robot Schematics ------------------ None Fabricated ------------ Nothing Repaired ---------- Nothing Studied --------- None Alien Tech Used ----------------- None Achievements -------------- None Challenges ------------ None Game ------ Seed BeamDeuteriumProjector Manual? 0 Play Time 00:07:37 Cumulative 443.1 hours Start 2026.02.19 @ 19:02:51 End 2026.02.19 @ 21:58:21 Sessions 2 Manual Loads 0 Difficulty Rogue Special Mode None Game No. 394 Rogue 358 Adventurer 36 Explorer 0 Win Type - Total 18 Types 9/0/9/0/0/0/0/0/0/0 Lore% 73 Gallery% 82 Achievement% 66 Wizard Run 0 Options --------- Layout 0 ASCII 0 Keyboard 0 Movement Mouse Keybinds 0 Fullscreen 1 Font 18/SmallcapsGlow Map View 76x50 Zoom Use 0% Tactical HUD 1 Map Filters NONE Filters NONE Steam 1 RUN: 20bb84b8-5e8c-45fc-8749-109e84208f51